fUST/lending_fUST_20250601
["ID","MTS","AMOUNT","RATE_DAILY","PERIOD"]
[363394209,1748717435268,-430.0,0.00016438,2]
[363394210,1748717435278,-347.22070214,0.00016438,2]
[363394211,1748717435288,-275.79862028,0.00016438,2]
[363394213,1748717435297,-439.15417083,0.00016438,2]
[363394214,1748717435307,-430.0,0.00016438,2]
[363394215,1748717435316,-430.0,0.00016438,2]
[363394216,1748717435326,-430.0,0.00016438,2]
[363394217,1748717435336,-430.0,0.00016438,2]
[363394218,1748717435347,-430.0,0.00016438,2]
[363394219,1748717435358,-430.0,0.00016438,2]
[363394220,1748717435368,-430.0,0.00016438,2]
[363394221,1748717435378,-430.0,0.00016438,2]
[363394222,1748717435388,-1044.87,0.00016438,2]
[363394223,1748717435398,-430.0,0.00016438,2]
[363394224,1748717435408,-430.0,0.00016438,2]
[363394225,1748717435417,-430.0,0.00016438,2]
[363394226,1748717435428,-430.0,0.00016438,2]
[363394227,1748717435439,-430.0,0.00016438,2]
[363394228,1748717435448,-430.0,0.00016438,2]
[363394229,1748717435458,-430.0,0.00016438,2]
[363394230,1748717435467,-430.0,0.00016438,2]
[363394231,1748717435478,-500.0,0.00016438,2]
[363394232,1748717435488,-1363.61152633,0.00016612,2]
[363394233,1748717435498,-500.0,0.00016711,2]
[363394234,1748717435508,-500.0,0.00016711,2]
[363394235,1748717435517,-231.871531,0.00016712,2]
[363394236,1748717435527,-231.871531,0.00016712,2]
[363394237,1748717435536,-260.0,0.00016712,2]
[363394238,1748717435546,-451.3213603,0.00016712,2]
[363394239,1748717435556,-151.0,0.00016712,2]
[363394241,1748717435566,-151.0,0.00016712,2]
[363394242,1748717435576,-200.752216,0.00016712,2]
[363394243,1748717435585,-151.0,0.00016712,2]
[363394244,1748717435595,-151.0,0.00016712,2]
[363394246,1748717435605,-430.0,0.00016712,2]
[363394247,1748717435616,-430.0,0.00016712,2]
[363394248,1748717435626,-430.0,0.00016712,2]
[363394249,1748717435636,-430.0,0.00016712,2]
[363394250,1748717435645,-430.0,0.00016712,2]
[363394251,1748717435655,-470.0,0.00016712,2]
[363394252,1748717435664,-430.0,0.00016712,2]
[363394253,1748717435673,-335.79861092,0.00016712,2]
[363394254,1748717435683,-430.0,0.00016712,2]
[363394255,1748717435693,-430.0,0.00016712,2]
[363394256,1748717435703,-430.0,0.00016712,2]
[363394257,1748717435712,-430.0,0.00016712,2]
[363394258,1748717435722,-430.0,0.00016712,2]
[363394259,1748717435732,-430.0,0.00016712,2]
[363394260,1748717435741,-430.0,0.00016712,2]
[363394261,1748717435751,-430.0,0.00016712,2]
[363394262,1748717435765,-168.72,0.00016712,2]
[363394263,1748717435775,-430.0,0.00016712,2]
[363394264,1748717435784,-430.0,0.00016712,2]
[363394266,1748717435794,-430.0,0.00016712,2]
[363394267,1748717435804,-430.0,0.00016712,2]
[363394268,1748717435814,-430.0,0.00016712,2]
[363394269,1748717435824,-430.0,0.00016712,2]
[363394270,1748717435834,-430.0,0.00016712,2]
[363394271,1748717435844,-430.0,0.00016712,2]
[363394273,1748717435854,-312.82963712,0.00016712,2]
[363394274,1748717435864,-430.0,0.00016712,2]
[363394275,1748717435873,-430.0,0.00016712,2]
[363394276,1748717435883,-430.0,0.00016712,2]
[363394277,1748717435893,-430.0,0.00016712,2]
[363394278,1748717435903,-335.99500742,0.00016712,2]
[363394279,1748717435913,-481.69,0.00016712,2]
[363394280,1748717435922,-430.0,0.00016712,2]
[363394281,1748717435931,-430.0,0.00016712,2]
[363394282,1748717435941,-430.0,0.00016712,2]
[363394283,1748717435951,-430.0,0.00016712,2]
[363394284,1748717435960,-211.35,0.00016712,2]
[363394285,1748717435970,-430.0,0.00016712,2]
[363394286,1748717435980,-430.0,0.00016712,2]
[363394287,1748717435991,-430.0,0.00016712,2]
[363394288,1748717436003,-430.0,0.00016712,2]
[363394289,1748717436013,-430.0,0.00016712,2]
[363394290,1748717436023,-576.5,0.00016712,2]
[363394291,1748717436036,-430.0,0.00016712,2]
[363394292,1748717436051,-430.0,0.00016712,2]
[363394293,1748717436064,-430.0,0.00016712,2]
[363394294,1748717436078,-430.0,0.00016712,2]
[363394295,1748717436091,-430.0,0.00016712,2]
[363394296,1748717436103,-316.75854565,0.00016712,2]
[363394297,1748717436114,-754.05,0.00016712,2]
[363394299,1748717436128,-164.79258161,0.00016712,2]
[363394300,1748717436140,-206.02551417,0.00016712,2]
[363394301,1748717436153,-480.84,0.00016712,2]
[363394302,1748717436166,-430.0,0.00016712,2]
[363394303,1748717436179,-430.0,0.00016712,2]
[363394304,1748717436191,-430.0,0.00016712,2]
[363394305,1748717436205,-430.0,0.00016712,2]
[363394306,1748717436219,-430.0,0.00016712,2]
[363394307,1748717436232,-430.0,0.00016712,2]
[363394309,1748717436245,-430.0,0.00016712,2]
[363394310,1748717436257,-430.0,0.00016712,2]
[363394311,1748717436270,-1550.43,0.00016712,2]
[363394312,1748717436281,-430.0,0.00016712,2]
[363394313,1748717436295,-430.0,0.00016712,2]
[363394314,1748717436308,-430.0,0.00016712,2]
[363394315,1748717436320,-430.0,0.00016712,2]
[363394316,1748717436333,-1471.28,0.00016712,2]
[363394317,1748717436347,-430.0,0.00016712,2]
[363394318,1748717436359,-827.98,0.00016712,2]
[363394319,1748717436372,-430.0,0.00016712,2]
[363394320,1748717436385,-626.27,0.00016712,2]
[363394321,1748717436396,-430.0,0.00016712,2]
[363394322,1748717436406,-710.63,0.00016712,2]
[363394323,1748717436418,-430.0,0.00016712,2]
[363394324,1748717436430,-350.0,0.00016712,2]
[363394325,1748717436442,-430.0,0.00016712,2]
[363394326,1748717436455,-460.21,0.00016712,2]
[363394327,1748717436467,-1487.83,0.00016712,2]
[363394328,1748717436481,-430.0,0.00016712,2]
[363394329,1748717436493,-430.0,0.00016712,2]
[363394330,1748717436509,-430.0,0.00016712,2]
[363394332,1748717436523,-430.0,0.00016712,2]
[363394333,1748717436536,-430.0,0.00016712,2]
[363394334,1748717436550,-430.0,0.00016712,2]
[363394336,1748717436563,-430.0,0.00016712,2]
[363394337,1748717436574,-430.0,0.00016712,2]
[363394338,1748717436585,-433.51,0.00016712,2]
[363394339,1748717436596,-1080.62,0.00016712,2]
[363394340,1748717436606,-355.86025775,0.00016712,2]
[363394341,1748717436619,-430.0,0.00016712,2]
[363394342,1748717436631,-430.0,0.00016712,2]
[363394343,1748717436645,-430.0,0.00016712,2]
[363394344,1748717436658,-1098.56,0.00016712,2]
[363394345,1748717436668,-430.0,0.00016712,2]
[363394346,1748717436679,-430.0,0.00016712,2]
[363394347,1748717436691,-430.0,0.00016712,2]
[363394348,1748717436702,-430.0,0.00016712,2]
[363394349,1748717436713,-430.0,0.00016712,2]
[363394350,1748717436726,-430.0,0.00016712,2]
[363394351,1748717436738,-745.5,0.00016712,2]
[363394352,1748717436749,-530.0,0.00016712,2]
[363394354,1748717436761,-430.0,0.00016712,2]
[363394355,1748717436772,-428.35481803,0.00016712,2]
[363394356,1748717436783,-565.87,0.00016712,2]
[363394357,1748717436794,-430.0,0.00016712,2]
[363394358,1748717436805,-816.56,0.00016712,2]
[363394359,1748717436818,-430.0,0.00016712,2]
[363394360,1748717436830,-430.0,0.00016712,2]
[363394361,1748717436843,-430.0,0.00016712,2]
[363394362,1748717436857,-430.0,0.00016712,2]
[363394363,1748717436869,-430.0,0.00016712,2]
[363394364,1748717436881,-430.0,0.00016712,2]
[363394365,1748717436893,-430.0,0.00016712,2]
[363394366,1748717436906,-430.0,0.00016712,2]
[363394367,1748717436917,-430.0,0.00016712,2]
[363394368,1748717436930,-773.61,0.00016712,2]
[363394369,1748717436942,-430.0,0.00016712,2]
[363394370,1748717436955,-430.0,0.00016712,2]
[363394371,1748717436967,-430.0,0.00016712,2]
[363394372,1748717436979,-430.0,0.00016712,2]
[363394373,1748717436991,-430.0,0.00016712,2]
[363394374,1748717437004,-430.0,0.00016712,2]
[363394375,1748717437016,-430.0,0.00016712,2]
[363394376,1748717437029,-430.0,0.00016712,2]
[363394377,1748717437045,-1167.74,0.00016712,2]
[363394378,1748717437055,-430.0,0.00016712,2]
[363394379,1748717437074,-430.0,0.00016712,2]
[363394380,1748717437093,-430.0,0.00016712,2]
[363394381,1748717437107,-430.0,0.00016712,2]
[363394382,1748717437122,-430.0,0.00016712,2]
[363394383,1748717437135,-430.0,0.00016712,2]
[363394384,1748717437149,-430.0,0.00016712,2]
[363394385,1748717437162,-430.0,0.00016712,2]
[363394386,1748717437176,-1044.87,0.00016712,2]
[363394387,1748717437189,-430.0,0.00016712,2]
[363394388,1748717437202,-430.0,0.00016712,2]
[363394389,1748717437217,-430.0,0.00016712,2]
[363394390,1748717437230,-430.0,0.00016712,2]
[363394391,1748717437242,-430.0,0.00016712,2]
[363394392,1748717437255,-500.60381911,0.00016877,2]
[363394393,1748717437268,-500.0,0.00016877,2]
[363394394,1748717437281,-500.0,0.00016877,2]
[363394396,1748717437293,-500.0,0.0001689,2]
[363394397,1748717437306,-500.0,0.0001689,2]
[363394398,1748717437319,-438.97817513,0.0001689,2]
[363394399,1748717437333,-420.0,0.00016895,2]
[363394400,1748717437346,-420.0,0.00016896,2]
[363394401,1748717437358,-1880.9929203,0.000169,2]
[363394402,1748717437370,-470.98260152,0.00016934,2]
[363394403,1748717437383,-396.68944584,0.00016954,2]
[363394405,1748717437394,-500.82002908,0.00016954,2]
[363394407,1748717437407,-500.0,0.00016966,2]
[363394409,1748717437420,-505.40322186,0.00016966,2]
[363394410,1748717437432,-645.84577878,0.00016966,2]
[363394411,1748717437444,-505.67096782,0.00016966,2]
[363394412,1748717437456,-500.0,0.00016966,2]
[363394413,1748717437467,-500.0,0.00016966,2]
[363394414,1748717437479,-501.53825745,0.00016966,2]
[363394415,1748717437491,-500.0,0.00016966,2]
[363394416,1748717437502,-607.72295623,0.00016966,2]
[363394417,1748717437514,-500.24466392,0.00016966,2]
[363394418,1748717437525,-500.0,0.00016966,2]
[363394419,1748717437537,-512.8240996,0.00016966,2]
[363394420,1748717437549,-500.0,0.00016985,2]
[363394421,1748717437560,-433.26044315,0.00016986,2]
[363394422,1748717437572,-430.0,0.00016986,2]
[363394423,1748717437584,-430.0,0.00016986,2]
[363394424,1748717437596,-495.52381841,0.00016986,2]
[363394425,1748717437608,-430.0,0.00016986,2]
[363394426,1748717437620,-428.54429707,0.00016986,2]
[363394427,1748717437632,-430.0,0.00016986,2]
[363394428,1748717437643,-430.0,0.00016986,2]
[363394429,1748717437655,-430.0,0.00016986,2]
[363394430,1748717437667,-430.0,0.00016986,2]
[363394431,1748717437678,-430.0,0.00016986,2]
[363394432,1748717437689,-430.0,0.00016986,2]
[363394433,1748717437701,-430.0,0.00016986,2]
[363394434,1748717437713,-290.0,0.00016986,2]
[363394435,1748717437724,-430.0,0.00016986,2]
[363394436,1748717437735,-481.69,0.00016986,2]
[363394437,1748717437747,-430.0,0.00016986,2]
[363394438,1748717437757,-430.0,0.00016986,2]
[363394439,1748717437768,-197.48,0.00016986,2]
[363394440,1748717437951,-430.0,0.00016986,2]
[363394441,1748717437963,-576.5,0.00016986,2]
[363394442,1748717437973,-430.0,0.00016986,2]
[363394443,1748717437983,-430.0,0.00016986,2]
[363394444,1748717437995,-270.66971869,0.00016986,2]
[363394445,1748717438005,-754.05,0.00016986,2]
[363394446,1748717438015,-430.0,0.00016986,2]
[363394447,1748717438025,-430.0,0.00016986,2]
[363394448,1748717438035,-430.0,0.00016986,2]
[363394449,1748717438048,-430.0,0.00016986,2]
[363394450,1748717438058,-430.0,0.00016986,2]
[363394451,1748717438068,-1550.43,0.00016986,2]
[363394452,1748717438079,-430.0,0.00016986,2]
[363394453,1748717438089,-430.0,0.00016986,2]
[363394454,1748717438099,-430.0,0.00016986,2]
[363394455,1748717438108,-430.0,0.00016986,2]
[363394456,1748717438118,-1471.28,0.00016986,2]
[363394457,1748717438128,-430.0,0.00016986,2]
[363394458,1748717438139,-827.98,0.00016986,2]
[363394459,1748717438148,-626.27,0.00016986,2]
[363394460,1748717438158,-710.63,0.00016986,2]
[363394461,1748717438168,-430.0,0.00016986,2]
[363394462,1748717438178,-430.0,0.00016986,2]
[363394463,1748717438189,-460.21,0.00016986,2]
[363394464,1748717438199,-1487.83,0.00016986,2]
[363394465,1748717438209,-430.0,0.00016986,2]
[363394466,1748717438219,-430.0,0.00016986,2]
[363394467,1748717438229,-430.0,0.00016986,2]
[363394468,1748717438239,-274.6,0.00016986,2]
[363394469,1748717438249,-430.0,0.00016986,2]
[363394470,1748717438259,-430.0,0.00016986,2]
[363394471,1748717438269,-433.51,0.00016986,2]
[363394472,1748717438279,-1080.62,0.00016986,2]
[363394473,1748717438289,-430.0,0.00016986,2]
[363394474,1748717438298,-1098.56,0.00016986,2]
[363394475,1748717438308,-430.0,0.00016986,2]
[363394476,1748717438318,-430.0,0.00016986,2]
[363394477,1748717438328,-430.0,0.00016986,2]
[363394478,1748717438338,-745.5,0.00016986,2]
[363394479,1748717438349,-565.87,0.00016986,2]
[363394480,1748717438358,-698.87878035,0.00016986,2]
[363394500,1748717438553,-117.68121965,0.00016986,2]
[363394502,1748717438563,-430.0,0.00016986,2]
[363394504,1748717438574,-430.0,0.00016986,2]
[363394506,1748717438584,-430.0,0.00016986,2]
[363394508,1748717438594,-773.61,0.00016986,2]
[363394510,1748717438605,-437.29061457,0.00016986,2]
[363394513,1748717438615,-430.0,0.00016986,2]
[363394514,1748717438624,-430.0,0.00016986,2]
[363394517,1748717438634,-430.0,0.00016986,2]
[363394518,1748717438644,-430.0,0.00016986,2]
[363394520,1748717438655,-1167.74,0.00016986,2]
[363394523,1748717438664,-430.0,0.00016986,2]
[363394524,1748717438674,-430.0,0.00016986,2]
[363394527,1748717438684,-430.0,0.00016986,2]
[363394529,1748717438693,-430.0,0.00016986,2]
[363394531,1748717438703,-430.0,0.00016986,2]
[363394533,1748717438712,-1044.87,0.00016986,2]
[363394535,1748717438722,-430.0,0.00016986,2]
[363394537,1748717438732,-430.0,0.00016986,2]
[363394539,1748717438741,-500.0,0.00016987,2]
[363394541,1748717438752,-507.7224305,0.00017022,2]
[363394543,1748717438762,-1880.99292003,0.00017176,2]
[363394545,1748717438771,-500.0,0.00017241,2]
[363394547,1748717438780,-528.45431058,0.00017241,2]
[363394549,1748717438791,-500.75269619,0.00017241,2]
[363394551,1748717438800,-500.0,0.00017241,2]
[363394553,1748717438810,-501.07931688,0.00017241,2]
[363394555,1748717438820,-500.0,0.00017241,2]
[363394557,1748717438829,-156.16052953,0.00017241,2]
[363394559,1748717438839,-500.0,0.00017241,2]
[363394561,1748717438849,-478.68815875,0.00017241,2]
[363394563,1748717438858,-500.0,0.00017259,2]
[363394565,1748717438867,-323.13456989,0.00017259,2]
[363394567,1748717438879,-176.86543011,0.00017259,2]
[363394569,1748717438890,-151.0,0.0001726,2]
[363394571,1748717438900,-462.17104287,0.0001726,2]
[363394573,1748717438910,-430.0,0.0001726,2]
[363394575,1748717438920,-430.0,0.0001726,2]
[363394577,1748717438930,-430.0,0.0001726,2]
[363394579,1748717438939,-430.0,0.0001726,2]
[363394581,1748717438949,-430.0,0.0001726,2]
[363394583,1748717438959,-430.0,0.0001726,2]
[363394585,1748717438968,-481.69,0.0001726,2]
[363394587,1748717438978,-430.0,0.0001726,2]
[363394589,1748717438989,-430.0,0.0001726,2]
[363394591,1748717439002,-576.5,0.0001726,2]
[363394593,1748717439012,-430.0,0.0001726,2]
[363394595,1748717439022,-430.0,0.0001726,2]
[363394597,1748717439032,-754.05,0.0001726,2]
[363394600,1748717439043,-430.0,0.0001726,2]
[363394602,1748717439054,-430.0,0.0001726,2]
[363394604,1748717439073,-430.0,0.0001726,2]
[363394606,1748717439084,-430.0,0.0001726,2]
[363394608,1748717439093,-446.21315886,0.0001726,2]
[363394610,1748717439103,-1550.43,0.0001726,2]
[363394612,1748717439113,-430.0,0.0001726,2]
[363394614,1748717439123,-430.0,0.0001726,2]
[363394616,1748717439133,-1471.28,0.0001726,2]
[363394618,1748717439143,-430.0,0.0001726,2]
[363394620,1748717439153,-827.98,0.0001726,2]
[363394622,1748717439163,-626.27,0.0001726,2]
[363394624,1748717439173,-710.63,0.0001726,2]
[363394626,1748717439183,-430.0,0.0001726,2]
[363394628,1748717439193,-430.0,0.0001726,2]
[363394630,1748717439202,-460.21,0.0001726,2]
[363394632,1748717439214,-1487.83,0.0001726,2]
[363394634,1748717439223,-430.0,0.0001726,2]
[363394636,1748717439233,-430.0,0.0001726,2]
[363394638,1748717439244,-215.2864232,0.0001726,2]
[363394640,1748717439256,-214.7135768,0.0001726,2]
[363394642,1748717439267,-229.93852133,0.0001726,2]
[363394649,1748717439313,-430.0,0.00016438,2]
[363394651,1748717439323,-578.79,0.00016438,2]
[363394653,1748717439332,-200.06147867,0.0001726,2]
[363394655,1748717439343,-389.32699589,0.0001726,2]
[363394657,1748717439354,-40.67300411,0.0001726,2]
[363394659,1748717439365,-433.51,0.0001726,2]
[363394662,1748717439381,-1080.62,0.0001726,2]
[363394665,1748717439396,-430.0,0.0001726,2]
[363394667,1748717439407,-1098.56,0.0001726,2]
[363394670,1748717439417,-430.0,0.0001726,2]
[363394673,1748717439427,-745.5,0.0001726,2]
[363394676,1748717439437,-565.87,0.0001726,2]
[363394679,1748717439446,-816.56,0.0001726,2]
[363394682,1748717439457,-430.0,0.0001726,2]
[363394685,1748717439467,-430.0,0.0001726,2]
[363394688,1748717439476,-773.61,0.0001726,2]
[363394691,1748717439486,-430.0,0.0001726,2]
[363394694,1748717439496,-430.0,0.0001726,2]
[363394697,1748717439506,-430.0,0.0001726,2]
[363394700,1748717439515,-430.0,0.0001726,2]
[363394703,1748717439525,-1167.74,0.0001726,2]
[363394706,1748717439534,-430.0,0.0001726,2]
[363394709,1748717439544,-430.0,0.0001726,2]
[363394712,1748717439555,-430.0,0.0001726,2]
[363394715,1748717439565,-430.0,0.0001726,2]
[363394719,1748717439574,-430.0,0.0001726,2]
[363394721,1748717439584,-1044.87,0.0001726,2]
[363394723,1748717439593,-430.0,0.0001726,2]
[363394725,1748717439603,-430.0,0.0001726,2]
[363394727,1748717439614,-500.0,0.00017268,2]
[363394729,1748717439623,-500.0,0.00017364,2]
[363394732,1748717439634,-1363.6115263,0.00017434,2]
[363394734,1748717439644,-500.0,0.00017438,2]
[363394736,1748717439654,-1880.99292003,0.00017452,2]
[363394738,1748717439663,-500.84810147,0.00017513,2]
[363394740,1748717439672,-465.55619232,0.00017513,2]
[363394742,1748717439682,-404.09564099,0.00017533,2]
[363394744,1748717439691,-231.871531,0.00017534,2]
[363394746,1748717439701,-231.871531,0.00017534,2]
[363394748,1748717439712,-430.0,0.00017534,2]
[363394750,1748717439721,-430.0,0.00017534,2]
[363394752,1748717439731,-430.0,0.00017534,2]
[363394754,1748717439740,-577.53,0.00017534,2]
[363394756,1748717439749,-430.0,0.00017534,2]
[363394758,1748717439759,-481.69,0.00017534,2]
[363394760,1748717439769,-430.0,0.00017534,2]
[363394762,1748717439778,-576.5,0.00017534,2]
[363394764,1748717439788,-520.7,0.00017534,2]
[363394766,1748717439797,-430.0,0.00017534,2]
[363394768,1748717439807,-754.05,0.00017534,2]
[363394770,1748717439817,-430.0,0.00017534,2]
[363394772,1748717439827,-430.0,0.00017534,2]
[363394774,1748717439836,-430.0,0.00017534,2]
[363394776,1748717439846,-1550.43,0.00017534,2]
[363394778,1748717439856,-430.0,0.00017534,2]
[363394781,1748717439865,-430.0,0.00017534,2]
[363394783,1748717439875,-1471.28,0.00017534,2]
[363394785,1748717439884,-430.0,0.00017534,2]
[363394787,1748717439895,-827.98,0.00017534,2]
[363394789,1748717439911,-626.27,0.00017534,2]
[363394791,1748717439922,-710.63,0.00017534,2]
[363394793,1748717439932,-430.0,0.00017534,2]
[363394795,1748717439943,-430.0,0.00017534,2]
[363394797,1748717439953,-460.21,0.00017534,2]
[363394799,1748717439962,-1487.83,0.00017534,2]
[363394801,1748717439972,-430.0,0.00017534,2]
[363394803,1748717439982,-445.85260338,0.00017534,2]
[363394805,1748717439995,-430.0,0.00017534,2]
[363394807,1748717440005,-430.0,0.00017534,2]
[363394809,1748717440015,-433.51,0.00017534,2]
[363394812,1748717440025,-1080.62,0.00017534,2]
[363394814,1748717440035,-430.0,0.00017534,2]
[363394816,1748717440045,-1098.56,0.00017534,2]
[363394818,1748717440055,-430.0,0.00017534,2]
[363394819,1748717440064,-745.5,0.00017534,2]
[363394821,1748717440074,-565.87,0.00017534,2]
[363394823,1748717440084,-816.56,0.00017534,2]
[363394826,1748717440095,-430.0,0.00017534,2]
[363394828,1748717440104,-430.0,0.00017534,2]
[363394829,1748717440115,-773.61,0.00017534,2]
[363394832,1748717440126,-430.0,0.00017534,2]
[363394834,1748717440135,-430.0,0.00017534,2]
[363394836,1748717440145,-265.12,0.00017534,2]
[363394838,1748717440154,-1167.74,0.00017534,2]
[363394840,1748717440164,-508.15,0.00017534,2]
[363394842,1748717440173,-430.0,0.00017534,2]
[363394844,1748717440183,-430.0,0.00017534,2]
[363394846,1748717440192,-430.0,0.00017534,2]
[363394848,1748717440202,-430.0,0.00017534,2]
[363394850,1748717440212,-1044.87,0.00017534,2]
[363394852,1748717440222,-430.0,0.00017534,2]
[363394854,1748717440231,-430.0,0.00017534,2]
[363394856,1748717440241,-1880.99292003,0.00017728,2]
[363394858,1748717440250,-625.62677359,0.00017789,2]
[363394860,1748717440260,-500.0,0.00017789,2]
[363394862,1748717440269,-430.0,0.00017808,2]
[363394864,1748717440279,-430.0,0.00017808,2]
[363394866,1748717440290,-430.0,0.00017808,2]
[363394868,1748717440301,-481.69,0.00017808,2]
[363394870,1748717440311,-430.0,0.00017808,2]
[363394871,1748717440321,-576.5,0.00017808,2]
[363394873,1748717440331,-430.0,0.00017808,2]
[363394875,1748717440341,-754.05,0.00017808,2]
[363394878,1748717440352,-430.0,0.00017808,2]
[363394880,1748717440362,-430.0,0.00017808,2]
[363394882,1748717440372,-430.0,0.00017808,2]
[363394884,1748717440382,-1550.43,0.00017808,2]
[363394886,1748717440392,-430.0,0.00017808,2]
[363394887,1748717440402,-430.0,0.00017808,2]
[363394890,1748717440412,-1471.28,0.00017808,2]
[363394891,1748717440422,-430.0,0.00017808,2]
[363394894,1748717440435,-827.98,0.00017808,2]
[363394895,1748717440452,-626.27,0.00017808,2]
[363394898,1748717440463,-710.63,0.00017808,2]
[363394900,1748717440473,-430.0,0.00017808,2]
[363394902,1748717440483,-430.0,0.00017808,2]
[363394904,1748717440492,-460.21,0.00017808,2]
[363394906,1748717440502,-1487.83,0.00017808,2]
[363394908,1748717440511,-430.0,0.00017808,2]
[363394910,1748717440521,-430.0,0.00017808,2]
[363394912,1748717440531,-430.0,0.00017808,2]
[363394914,1748717440541,-1080.62,0.00017808,2]
[363394916,1748717440550,-430.0,0.00017808,2]
[363394918,1748717440560,-1098.56,0.00017808,2]
[363394920,1748717440570,-430.0,0.00017808,2]
[363394922,1748717440579,-745.5,0.00017808,2]
[363394924,1748717440590,-565.87,0.00017808,2]
[363394926,1748717440600,-816.56,0.00017808,2]
[363394928,1748717440610,-430.0,0.00017808,2]
[363394930,1748717440622,-430.0,0.00017808,2]
[363394932,1748717440632,-773.61,0.00017808,2]
[363394934,1748717440641,-430.0,0.00017808,2]
[363394936,1748717440651,-1167.74,0.00017808,2]
[363394938,1748717440660,-430.0,0.00017808,2]
[363394940,1748717440670,-430.0,0.00017808,2]
[363394942,1748717440679,-430.0,0.00017808,2]
[363394944,1748717440689,-1044.87,0.00017808,2]
[363394946,1748717440701,-430.0,0.00017808,2]
[363394948,1748717440711,-430.0,0.00017808,2]
[363394950,1748717440720,-430.0,0.00017808,2]
[363394952,1748717440730,-229.3428821,0.00017866,2]
[363394954,1748717440740,-423.4608169,0.00017866,2]
[363394956,1748717440750,-842.5625,0.00017866,2]
[363394958,1748717440760,-160.0,0.00017866,2]
[363394960,1748717440770,-160.0,0.00017866,2]
[363394962,1748717440781,-160.0,0.00017866,2]
[363394964,1748717440791,-160.0,0.00017866,2]
[363394966,1748717440801,-160.0,0.00017866,2]
[363394968,1748717440811,-212.77096907,0.00017866,2]
[363394971,1748717440821,-12664.98044988,0.00017866,2]
[363394973,1748717440831,-500.0,0.00017912,2]
[363394975,1748717440841,-151.0,0.00018,2]
[363394977,1748717440851,-1880.99292003,0.00018003,2]
[363394979,1748717440861,-430.0,0.00018082,2]
[363394981,1748717440871,-430.0,0.00018082,2]
[363394983,1748717440881,-430.0,0.00018082,2]
[363394985,1748717440891,-481.69,0.00018082,2]
[363394987,1748717440901,-430.0,0.00018082,2]
[363394989,1748717440910,-576.5,0.00018082,2]
[363394991,1748717440919,-430.0,0.00018082,2]
[363394993,1748717440929,-754.05,0.00018082,2]
[363394995,1748717440939,-430.0,0.00018082,2]
[363394997,1748717440948,-430.0,0.00018082,2]
[363394999,1748717440958,-1550.43,0.00018082,2]
[363395001,1748717440967,-430.0,0.00018082,2]
[363395003,1748717440977,-262.55,0.00018082,2]
[363395005,1748717440987,-1471.28,0.00018082,2]
[363395022,1748717441143,-430.0,0.00018082,2]
[363395024,1748717441153,-827.98,0.00018082,2]
[363395026,1748717441163,-626.27,0.00018082,2]
[363395028,1748717441172,-710.63,0.00018082,2]